fUST/lending_fUST_20241118
["ID","MTS","AMOUNT","RATE_DAILY","PERIOD"]
[342438400,1731875432414,-500.0,0.00019177,2]
[342438401,1731875432424,-500.0,0.00019177,2]
[342438402,1731875432433,-500.0,0.00019177,2]
[342438403,1731875432443,-500.0,0.00019177,2]
[342438404,1731875432452,-500.0,0.00019177,2]
[342438405,1731875432461,-500.0,0.00019177,2]
[342438406,1731875432470,-500.0,0.00019177,2]
[342438407,1731875432479,-500.0,0.00019177,2]
[342438408,1731875432489,-500.0,0.00019177,2]
[342438409,1731875432499,-500.0,0.00019177,2]
[342438410,1731875432511,-500.0,0.00019177,2]
[342438411,1731875432520,-500.0,0.00019177,2]
[342438412,1731875432529,-500.0,0.00019177,2]
[342438413,1731875432538,-500.0,0.00019177,2]
[342438414,1731875432549,-584.82968822,0.00019177,2]
[342438415,1731875432562,-500.0,0.00019177,2]
[342438416,1731875432572,-500.0,0.00019177,2]
[342438417,1731875432583,-500.0,0.00019177,2]
[342438418,1731875432594,-500.0,0.00019177,2]
[342438419,1731875432603,-500.0,0.00019177,2]
[342438420,1731875432612,-500.0,0.00019177,2]
[342438421,1731875432621,-500.0,0.00019177,2]
[342438422,1731875432631,-500.0,0.00019177,2]
[342438423,1731875432640,-500.0,0.00019177,2]
[342438424,1731875432649,-474.1357088,0.00019177,2]
[342438425,1731875432658,-500.0,0.00019177,2]
[342438426,1731875432667,-500.0,0.00019177,2]
[342438427,1731875432676,-500.0,0.00019177,2]
[342438428,1731875432685,-500.0,0.00019177,2]
[342438429,1731875432694,-217.07063905,0.00019177,2]
[342438430,1731875432703,-500.0,0.00019177,2]
[342438431,1731875432712,-281.47606701,0.00019177,2]
[342438432,1731875432722,-334.19133081,0.00019177,2]
[342438433,1731875432731,-500.0,0.00019177,2]
[342438434,1731875432740,-500.0,0.00019177,2]
[342438435,1731875432749,-500.0,0.00019177,2]
[342438436,1731875432758,-500.0,0.00019177,2]
[342438437,1731875432767,-500.0,0.00019177,2]
[342438438,1731875432776,-500.0,0.00019177,2]
[342438439,1731875432785,-620.53663202,0.00019177,2]
[342438440,1731875432795,-500.0,0.00019177,2]
[342438441,1731875432806,-500.0,0.00019177,2]
[342438442,1731875432815,-334.15279444,0.00019177,2]
[342438443,1731875432825,-500.0,0.00019177,2]
[342438444,1731875432834,-500.0,0.00019177,2]
[342438445,1731875432844,-500.0,0.00019177,2]
[342438446,1731875432853,-500.0,0.00019177,2]
[342438447,1731875432862,-416.17662554,0.00019177,2]
[342438448,1731875432872,-500.0,0.00019177,2]
[342438449,1731875432881,-293.95477329,0.00019177,2]
[342438450,1731875432890,-500.0,0.00019177,2]
[342438451,1731875432899,-500.0,0.00019177,2]
[342438452,1731875432908,-500.0,0.00019177,2]
[342438453,1731875432918,-398.05984258,0.00019177,2]
[342438454,1731875432927,-391.04461936,0.00019177,2]
[342438455,1731875432937,-500.0,0.00019177,2]
[342438456,1731875432946,-500.0,0.00019177,2]
[342438457,1731875432955,-546.479,0.00019177,2]
[342438458,1731875432964,-154.162139,0.00019178,2]
[342438459,1731875432974,-151.0,0.00019178,2]
[342438460,1731875432983,-151.0,0.00019178,2]
[342438461,1731875432993,-151.0,0.00019178,2]
[342438462,1731875433002,-151.0,0.00019178,2]
[342438463,1731875433011,-151.0,0.00019178,2]
[342438464,1731875433021,-151.0,0.00019178,2]
[342438465,1731875433030,-290.771815,0.00019178,2]
[342438466,1731875433039,-151.0,0.00019178,2]
[342438467,1731875433049,-151.0,0.00019178,2]
[342438468,1731875433060,-152.938004,0.00019178,2]
[342438469,1731875433070,-151.0,0.00019178,2]
[342438470,1731875433079,-151.0,0.00019178,2]
[342438471,1731875433088,-151.0,0.00019178,2]
[342438472,1731875433099,-151.0,0.00019178,2]
[342438473,1731875433110,-151.0,0.00019178,2]
[342438474,1731875433120,-151.0,0.00019178,2]
[342438475,1731875433130,-151.0,0.00019178,2]
[342438476,1731875433139,-151.0,0.00019178,2]
[342438477,1731875433149,-151.0,0.00019178,2]
[342438478,1731875433158,-500.0,0.00019178,2]
[342438479,1731875433168,-334.33861018,0.00019178,2]
[342438480,1731875433177,-151.0,0.00019178,2]
[342438481,1731875433187,-151.0,0.00019178,2]
[342438482,1731875433196,-151.0,0.00019178,2]
[342438483,1731875433205,-151.0,0.00019178,2]
[342438484,1731875433215,-211.452864,0.00019178,2]
[342438485,1731875433224,-151.0,0.00019178,2]
[342438486,1731875433233,-151.0,0.00019178,2]
[342438487,1731875433243,-500.0,0.00019178,2]
[342438488,1731875433252,-192.7475085,0.00019178,2]
[342438489,1731875433261,-666.05,0.00019178,2]
[342438490,1731875433271,-500.0,0.00019178,2]
[342438491,1731875433281,-500.0,0.00019178,2]
[342438492,1731875433290,-500.0,0.00019178,2]
[342438493,1731875433300,-613.26,0.00019178,2]
[342438494,1731875433310,-16.11929519,0.00019178,2]
[342438495,1731875433324,-483.88070481,0.00019178,2]
[342438496,1731875433334,-500.0,0.00019178,2]
[342438497,1731875433343,-500.0,0.00019178,2]
[342438498,1731875433353,-500.0,0.00019178,2]
[342438499,1731875433362,-500.0,0.00019178,2]
[342438500,1731875433372,-500.0,0.00019178,2]
[342438501,1731875433381,-500.0,0.00019178,2]
[342438502,1731875433391,-500.0,0.00019178,2]
[342438503,1731875433401,-151.0,0.00019178,2]
[342438504,1731875433410,-151.0,0.00019178,2]
[342438505,1731875433419,-585.91,0.00019178,2]
[342438506,1731875433429,-500.0,0.00019178,2]
[342438507,1731875433438,-500.0,0.00019178,2]
[342438508,1731875433448,-500.0,0.00019178,2]
[342438509,1731875433457,-500.0,0.00019178,2]
[342438510,1731875433467,-500.0,0.00019178,2]
[342438511,1731875433477,-502.92649374,0.00019178,2]
[342438512,1731875433487,-470.171923,0.00019178,2]
[342438513,1731875433497,-433.73581054,0.00019178,2]
[342438514,1731875433510,-500.0,0.00019178,2]
[342438515,1731875433520,-500.0,0.00019178,2]
[342438516,1731875433530,-500.0,0.00019178,2]
[342438517,1731875433539,-500.0,0.00019178,2]
[342438518,1731875433549,-500.0,0.00019178,2]
[342438519,1731875433559,-313.6398633,0.00019178,2]
[342438520,1731875433570,-513.04,0.00019178,2]
[342438521,1731875433582,-500.0,0.00019178,2]
[342438522,1731875433593,-263.9408,0.00019178,2]
[342438523,1731875433603,-500.0,0.00019178,2]
[342438524,1731875433613,-500.0,0.00019178,2]
[342438525,1731875433623,-500.0,0.00019178,2]
[342438526,1731875433632,-689.22,0.00019178,2]
[342438527,1731875433642,-500.0,0.00019178,2]
[342438528,1731875433652,-500.0,0.00019178,2]
[342438529,1731875433661,-500.0,0.00019178,2]
[342438530,1731875433671,-151.0,0.00019178,2]
[342438531,1731875433680,-151.0,0.00019178,2]
[342438532,1731875433690,-151.0,0.00019178,2]
[342438533,1731875433700,-282.105315,0.00019178,2]
[342438534,1731875433710,-282.910903,0.00019178,2]
[342438535,1731875433720,-282.910903,0.00019178,2]
[342438536,1731875433729,-282.910903,0.00019178,2]
[342438537,1731875433739,-282.910903,0.00019178,2]
[342438538,1731875433749,-282.910903,0.00019178,2]
[342438539,1731875433759,-282.910903,0.00019178,2]
[342438540,1731875433768,-282.91089585,0.00019178,2]
[342438541,1731875433778,-731.42,0.00019178,2]
[342438542,1731875433788,-580.14228642,0.00019178,2]
[342438543,1731875433797,-500.0,0.00019178,2]
[342438544,1731875433808,-500.0,0.00019178,2]
[342438545,1731875433817,-500.0,0.00019178,2]
[342438546,1731875433827,-500.0,0.00019178,2]
[342438547,1731875433837,-747.75,0.00019178,2]
[342438548,1731875433847,-636.63657794,0.00019178,2]
[342438549,1731875433856,-500.0,0.00019178,2]
[342438550,1731875433866,-500.0,0.00019178,2]
[342438551,1731875433875,-1391.23,0.00019178,2]
[342438552,1731875433886,-500.0,0.00019178,2]
[342438553,1731875433896,-500.0,0.00019178,2]
[342438554,1731875433906,-500.0,0.00019178,2]
[342438555,1731875433915,-520.9,0.00019178,2]
[342438556,1731875433925,-500.0,0.00019178,2]
[342438557,1731875433935,-500.0,0.00019178,2]
[342438558,1731875433944,-227.98664248,0.00019178,2]
[342438559,1731875433954,-500.0,0.00019178,2]
[342438560,1731875433964,-500.0,0.00019178,2]
[342438561,1731875433974,-163.07515358,0.00019178,2]
[342438562,1731875433984,-500.0,0.00019178,2]
[342438563,1731875433994,-530.06477703,0.00019178,2]
[342438564,1731875434003,-500.0,0.00019178,2]
[342438565,1731875434013,-500.0,0.00019178,2]
[342438566,1731875434023,-574.79198545,0.00019178,2]
[342438567,1731875434033,-1283.89,0.00019178,2]
[342438568,1731875434042,-500.0,0.00019178,2]
[342438569,1731875434052,-243.549659,0.00019178,2]
[342438570,1731875434061,-243.549659,0.00019178,2]
[342438571,1731875434071,-243.549659,0.00019178,2]
[342438572,1731875434080,-658.98,0.00019178,2]
[342438573,1731875434090,-243.549659,0.00019178,2]
[342438574,1731875434099,-243.549659,0.00019178,2]
[342438575,1731875434110,-500.0,0.00019178,2]
[342438576,1731875434119,-243.549659,0.00019178,2]
[342438577,1731875434129,-243.549659,0.00019178,2]
[342438578,1731875434139,-243.549659,0.00019178,2]
[342438579,1731875434148,-243.549659,0.00019178,2]
[342438580,1731875434158,-243.549659,0.00019178,2]
[342438581,1731875434168,-500.0,0.00019178,2]
[342438582,1731875434177,-243.549659,0.00019178,2]
[342438583,1731875434187,-243.549659,0.00019178,2]
[342438584,1731875434196,-243.549659,0.00019178,2]
[342438585,1731875434205,-500.0,0.00019178,2]
[342438586,1731875434215,-243.549659,0.00019178,2]
[342438587,1731875434224,-243.549659,0.00019178,2]
[342438588,1731875434234,-243.549659,0.00019178,2]
[342438589,1731875434243,-243.549659,0.00019178,2]
[342438590,1731875434253,-243.549659,0.00019178,2]
[342438591,1731875434262,-600.98578332,0.00019178,2]
[342438592,1731875434272,-500.0,0.00019178,2]
[342438593,1731875434281,-500.0,0.00019178,2]
[342438594,1731875434291,-243.549659,0.00019178,2]
[342438595,1731875434301,-243.549661,0.00019178,2]
[342438596,1731875434315,-500.0,0.00019178,2]
[342438597,1731875434324,-500.0,0.00019178,2]
[342438598,1731875434334,-500.0,0.00019178,2]
[342438599,1731875434343,-500.0,0.00019178,2]
[342438600,1731875434352,-300.67051742,0.00019178,2]
[342438601,1731875434362,-500.0,0.00019178,2]
[342438602,1731875434371,-1251.06,0.00019178,2]
[342438603,1731875434381,-500.0,0.00019178,2]
[342438604,1731875434390,-500.0,0.00019178,2]
[342438605,1731875434399,-511.39127051,0.00019178,2]
[342438606,1731875434408,-500.0,0.00019178,2]
[342438607,1731875434418,-1765.67,0.00019178,2]
[342438608,1731875434428,-500.0,0.00019178,2]
[342438609,1731875434438,-500.0,0.00019178,2]
[342438610,1731875434447,-500.0,0.00019178,2]
[342438611,1731875434457,-500.0,0.00019178,2]
[342438612,1731875434467,-865.18,0.00019178,2]
[342438613,1731875434476,-500.0,0.00019178,2]
[342438614,1731875434485,-247.21,0.00019178,2]
[342438615,1731875434496,-743.51,0.00019178,2]
[342438616,1731875434508,-500.0,0.00019178,2]
[342438617,1731875434518,-500.0,0.00019178,2]
[342438618,1731875434529,-149.74138851,0.00019178,2]
[342438619,1731875434547,-350.25861149,0.00019178,2]
[342438620,1731875434689,-507.65511312,0.00019178,2]
[342438621,1731875434728,-778.37,0.00019178,2]
[342438622,1731875434738,-43.38935268,0.00019178,2]
[342438623,1731875434759,-597.74321847,0.00019178,2]
[342438624,1731875434768,-1759.47,0.00019178,2]
[342438625,1731875434778,-500.0,0.00019178,2]
[342438626,1731875434787,-352.54745025,0.00019178,2]
[342438643,1731875437921,-147.45254975,0.00019178,2]
[342438644,1731875437932,-151.0,0.00019178,2]
[342438645,1731875437942,-151.0,0.00019178,2]
[342438646,1731875437952,-151.0,0.00019178,2]
[342438647,1731875437962,-151.0,0.00019178,2]
[342438648,1731875437971,-500.0,0.00019178,2]
[342438649,1731875437981,-500.0,0.00019178,2]
[342438650,1731875437991,-500.0,0.00019178,2]
[342438651,1731875438001,-500.0,0.00019178,2]
[342438652,1731875438011,-500.0,0.00019178,2]
[342438653,1731875438020,-500.0,0.00019178,2]
[342438654,1731875438030,-833.04,0.00019178,2]
[342438655,1731875438040,-500.0,0.00019178,2]
[342438656,1731875438051,-500.0,0.00019178,2]
[342438657,1731875438065,-514.08985001,0.00019178,2]
[342438658,1731875438074,-1218.59,0.00019178,2]
[342438659,1731875438084,-508.34429206,0.00019178,2]
[342438660,1731875438095,-500.0,0.00019178,2]
[342438661,1731875438105,-500.0,0.00019178,2]
[342438662,1731875438114,-500.0,0.00019178,2]
[342438663,1731875438123,-706.46,0.00019178,2]
[342438664,1731875438133,-569.04,0.00019178,2]
[342438665,1731875438142,-500.0,0.00019178,2]
[342438667,1731875438151,-836.13,0.00019178,2]
[342438669,1731875438160,-943.95,0.00019178,2]
[342438670,1731875438169,-500.0,0.00019178,2]
[342438671,1731875438179,-500.0,0.00019178,2]
[342438672,1731875438188,-681.09,0.00019178,2]
[342438673,1731875438197,-500.0,0.00019178,2]
[342438674,1731875438207,-500.0,0.00019178,2]
[342438675,1731875438216,-500.0,0.00019178,2]
[342438676,1731875438226,-500.0,0.00019178,2]
[342438677,1731875438235,-500.0,0.00019178,2]
[342438678,1731875438245,-521.78,0.00019178,2]
[342438679,1731875438254,-946.85,0.00019178,2]
[342438680,1731875438264,-555.5769732,0.00019178,2]
[342438681,1731875438273,-500.0,0.00019178,2]
[342438682,1731875438283,-500.0,0.00019178,2]
[342438683,1731875438292,-107.40125763,0.00019178,2]
[342438684,1731875438308,-392.59874237,0.00019178,2]
[342438685,1731875438318,-1305.55,0.00019178,2]
[342438686,1731875438327,-1141.83,0.00019178,2]
[342438687,1731875438337,-557.99,0.00019178,2]
[342438688,1731875438346,-500.0,0.00019178,2]
[342438689,1731875438355,-500.0,0.00019178,2]
[342438690,1731875438366,-500.0,0.00019178,2]
[342438691,1731875438375,-1243.29,0.00019178,2]
[342438692,1731875438385,-500.0,0.00019178,2]
[342438693,1731875438395,-686.52,0.00019178,2]
[342438694,1731875438405,-572.99640988,0.00019178,2]
[342438695,1731875438415,-240.84378705,0.00019178,2]
[342438696,1731875438425,-500.0,0.00019178,2]
[342438697,1731875438435,-685.83,0.00019178,2]
[342438698,1731875438444,-500.0,0.00019178,2]
[342438699,1731875438455,-500.0,0.00019178,2]
[342438700,1731875438465,-703.27,0.00019178,2]
[342438701,1731875438474,-500.0,0.00019178,2]
[342438702,1731875438484,-672.41,0.00019178,2]
[342438703,1731875438494,-511.07489608,0.00019178,2]
[342438704,1731875438507,-500.0,0.00019178,2]
[342438705,1731875438516,-1279.31,0.00019178,2]
[342438706,1731875438525,-500.0,0.00019178,2]
[342438707,1731875438535,-500.0,0.00019178,2]
[342438708,1731875438545,-500.0,0.00019178,2]
[342438709,1731875438555,-500.0,0.00019178,2]
[342438710,1731875438566,-3111.41,0.00019178,2]
[342438711,1731875438577,-504.97643394,0.00019178,2]
[342438712,1731875438586,-500.0,0.00019178,2]
[342438713,1731875438596,-158.01943536,0.00019178,2]
[342438714,1731875438605,-845.21,0.00019178,2]
[342438715,1731875438615,-297.762059,0.00019178,2]
[342438716,1731875438624,-500.0,0.00019178,2]
[342438717,1731875438634,-297.762059,0.00019178,2]
[342438718,1731875438643,-297.762059,0.00019178,2]
[342438719,1731875438652,-1558.84,0.00019178,2]
[342438720,1731875438662,-297.762059,0.00019178,2]
[342438721,1731875438672,-297.762059,0.00019178,2]
[342438722,1731875438682,-719.01,0.00019178,2]
[342438723,1731875438691,-297.762059,0.00019178,2]
[342438724,1731875438700,-297.762059,0.00019178,2]
[342438725,1731875438710,-708.4,0.00019178,2]
[342438726,1731875438719,-297.762059,0.00019178,2]
[342438727,1731875438730,-297.762059,0.00019178,2]
[342438728,1731875438739,-566.76,0.00019178,2]
[342438729,1731875438750,-297.762059,0.00019178,2]
[342438730,1731875438760,-297.762059,0.00019178,2]
[342438731,1731875438770,-297.762059,0.00019178,2]
[342438732,1731875438779,-297.762059,0.00019178,2]
[342438733,1731875438789,-297.762059,0.00019178,2]
[342438734,1731875438798,-297.762059,0.00019178,2]
[342438735,1731875438808,-297.762059,0.00019178,2]
[342438736,1731875438817,-297.762059,0.00019178,2]
[342438737,1731875438826,-801.85,0.00019178,2]
[342438738,1731875438836,-297.762059,0.00019178,2]
[342438739,1731875438846,-297.762059,0.00019178,2]
[342438740,1731875438856,-297.762053,0.00019178,2]
[342438741,1731875438866,-500.0,0.00019178,2]
[342438742,1731875438875,-682.7,0.00019178,2]
[342438743,1731875438885,-500.0,0.00019178,2]
[342438744,1731875438894,-500.0,0.00019178,2]
[342438745,1731875438904,-500.0,0.00019178,2]
[342438746,1731875438914,-742.86912131,0.00019178,2]
[342438747,1731875438932,-1243.77087869,0.00019178,2]
[342438748,1731875438942,-581.3,0.00019178,2]
[342438749,1731875438952,-150.05,0.00019178,2]
[342438750,1731875438962,-533.05,0.00019178,2]
[342438751,1731875438971,-372.10103211,0.00019178,2]
[342438752,1731875438981,-1068.98,0.00019178,2]
[342438753,1731875438995,-2362.15,0.00019178,2]
[342438754,1731875439005,-500.0,0.00019178,2]
[342438755,1731875439015,-654.68,0.00019178,2]
[342438756,1731875439025,-500.0,0.00019178,2]
[342438757,1731875439036,-4295.7,0.00019178,2]
[342438758,1731875439046,-1540.04,0.00019178,2]
[342438759,1731875439058,-500.0,0.00019178,2]
[342438760,1731875439068,-621.43242547,0.00019178,2]
[342438761,1731875439078,-717.76,0.00019178,2]
[342438762,1731875439088,-505.5760862,0.00019178,2]
[342438763,1731875439097,-200.0,0.00019178,4]
[342438764,1731875439107,-500.0,0.00019178,2]
[342438765,1731875439116,-500.0,0.00019178,2]
[342438766,1731875439126,-500.0,0.00019178,2]
[342438767,1731875439135,-500.0,0.00019178,2]
[342438768,1731875439144,-500.0,0.00019178,2]
[342438769,1731875439154,-1409.73,0.00019178,2]
[342438770,1731875439164,-500.0,0.00019178,2]
[342438771,1731875439174,-500.0,0.00019178,2]
[342438772,1731875439184,-677.43,0.00019178,2]
[342438773,1731875439194,-500.0,0.00019178,2]
[342438774,1731875439203,-500.0,0.00019178,2]
[342438775,1731875439212,-500.0,0.00019178,2]
[342438777,1731875439221,-500.0,0.00019178,2]
[342438779,1731875439231,-500.0,0.00019178,2]
[342438781,1731875439240,-500.0,0.00019178,2]
[342438783,1731875439249,-500.0,0.00019178,2]
[342438785,1731875439258,-500.0,0.00019178,2]
[342438787,1731875439268,-500.0,0.00019178,2]
[342438790,1731875439277,-512.62332146,0.00019178,2]
[342438792,1731875439287,-500.0,0.00019178,2]
[342438794,1731875439296,-630.92,0.00019178,2]
[342438795,1731875439345,-500.0,0.00019178,2]
[342438797,1731875439355,-500.0,0.00019178,2]
[342438798,1731875439364,-500.0,0.00019178,2]
[342438799,1731875439373,-500.0,0.00019178,2]
[342438800,1731875439382,-661.63,0.00019178,2]
[342438801,1731875439392,-591.3,0.00019178,2]
[342438802,1731875439401,-3387.21,0.00019178,2]
[342438803,1731875439411,-517.45264124,0.00019178,2]
[342438804,1731875439420,-500.0,0.00019178,2]
[342438805,1731875439430,-593.24971701,0.00019178,2]
[342438806,1731875439439,-362.43400374,0.00019178,2]
[342438807,1731875439448,-500.0,0.00019178,2]
[342438808,1731875439457,-537.92,0.00019178,2]
[342438810,1731875439467,-186.15492806,0.00019178,2]
[342438812,1731875439476,-500.0,0.00019178,2]
[342438813,1731875439485,-500.0,0.00019178,2]
[342438815,1731875439494,-520.586978,0.00019178,2]
[342438817,1731875439505,-534.4,0.00019178,2]
[342438818,1731875439516,-500.0,0.00019178,2]
[342438819,1731875439525,-500.0,0.00019178,2]
[342438821,1731875439534,-1996.52,0.00019178,2]
[342438823,1731875439545,-500.0,0.00019178,2]
[342438824,1731875439555,-1577.68,0.00019178,2]
[342438826,1731875439567,-500.0,0.00019178,2]
[342438828,1731875439576,-500.0,0.00019178,2]
[342438829,1731875439587,-500.0,0.00019178,2]
[342438831,1731875439597,-891.49,0.00019178,2]
[342438832,1731875439607,-500.0,0.00019178,2]
[342438834,1731875439616,-2659.47,0.00019178,2]
[342438836,1731875439626,-554.65361389,0.00019178,2]
[342438838,1731875439635,-500.0,0.00019178,2]
[342438839,1731875439645,-1307.37,0.00019178,2]
[342438840,1731875439654,-185.35,0.00019178,2]
[342438841,1731875439664,-517.62908292,0.00019178,2]
[342438842,1731875439673,-1155.85,0.00019178,2]
[342438844,1731875439683,-500.0,0.00019178,2]
[342438845,1731875439692,-1671.51,0.00019178,2]
[342438846,1731875439701,-1626.67,0.00019178,2]
[342438847,1731875439711,-500.0,0.00019178,2]
[342438848,1731875439721,-500.0,0.00019178,2]
[342438849,1731875439730,-500.0,0.00019178,2]
[342438850,1731875439740,-500.0,0.00019178,2]
[342438851,1731875439749,-500.0,0.00019178,2]
[342438852,1731875439759,-505.72,0.00019178,2]
[342438853,1731875439768,-151.180852,0.00019178,2]
[342438854,1731875439777,-1333.6,0.00019178,2]
[342438855,1731875439787,-766.24,0.00019178,2]
[342438856,1731875439796,-877.49,0.00019178,2]
[342438857,1731875439808,-500.0,0.00019178,2]
[342438858,1731875439816,-500.0,0.00019178,2]
[342438859,1731875439827,-188.57650932,0.00019178,2]
[342438860,1731875439836,-500.0,0.00019178,2]
[342438861,1731875439846,-767.1,0.00019178,2]
[342438862,1731875439855,-500.0,0.00019178,2]
[342438863,1731875439865,-500.0,0.00019178,2]
[342438864,1731875439874,-560.69,0.00019178,2]
[342438865,1731875439884,-500.0,0.00019178,2]
[342438866,1731875439898,-544.1,0.00019178,2]
[342438867,1731875439908,-500.0,0.00019178,2]
[342438868,1731875439918,-500.0,0.00019178,2]
[342438869,1731875439927,-500.0,0.00019178,2]
[342438870,1731875439936,-193.73153352,0.00019178,2]
[342438871,1731875439945,-151.0,0.00019178,2]
[342438872,1731875439955,-151.0,0.00019178,2]
[342438873,1731875439965,-151.0,0.00019178,2]
[342438874,1731875439975,-151.0,0.00019178,2]
[342438875,1731875439985,-151.0,0.00019178,2]
[342438876,1731875439995,-151.0,0.00019178,2]
[342438877,1731875440004,-151.0,0.00019178,2]
[342438878,1731875440013,-500.0,0.00019178,2]
[342438879,1731875440022,-1315.35,0.00019178,2]
[342438880,1731875440031,-151.0,0.00019178,2]
[342438881,1731875440040,-151.0,0.00019178,2]
[342438882,1731875440049,-662.12,0.00019178,2]
[342438883,1731875440061,-151.0,0.00019178,2]
[342438884,1731875440070,-1115.8,0.00019178,2]
[342438885,1731875440080,-151.0,0.00019178,2]
[342438886,1731875440089,-3841.86,0.00019178,2]
[342438887,1731875440099,-151.0,0.00019178,2]
[342438888,1731875440111,-151.0,0.00019178,2]
[342438889,1731875440122,-151.0,0.00019178,2]
[342438890,1731875440133,-151.0,0.00019178,2]
[342438891,1731875440143,-151.0,0.00019178,2]
[342438892,1731875440152,-217.782402,0.00019178,2]
[342438893,1731875440162,-551.98,0.00019178,2]
[342438894,1731875440175,-500.0,0.00019178,2]
[342438895,1731875440184,-500.0,0.00019178,2]
[342438896,1731875440194,-1116.08,0.00019178,2]
[342438897,1731875440203,-627.38,0.00019178,2]
[342438898,1731875440212,-500.0,0.00019178,2]
[342438899,1731875440222,-500.0,0.00019178,2]
[342438900,1731875440231,-500.0,0.00019178,2]
[342438901,1731875440240,-500.0,0.00019178,2]
[342438902,1731875440250,-2866.94,0.00019178,2]
[342438903,1731875440259,-505.49179759,0.00019178,2]
[342438904,1731875440268,-500.0,0.00019178,2]
[342438905,1731875440277,-1582.74,0.00019178,2]
[342438906,1731875440286,-631.56,0.00019178,2]
[342438907,1731875440295,-500.0,0.00019178,2]
[342438908,1731875440304,-500.0,0.00019178,2]
[342438909,1731875440316,-1691.66,0.00019178,2]
[342438910,1731875440325,-500.0,0.00019178,2]
[342438911,1731875440335,-1351.94,0.00019178,2]
[342438912,1731875440344,-182.363401,0.00019178,2]
[342438913,1731875440354,-313.96078174,0.00019178,2]
[342438914,1731875440362,-182.363401,0.00019178,2]
[342438915,1731875440372,-182.363401,0.00019178,2]
[342438916,1731875440381,-182.363401,0.00019178,2]
[342438917,1731875440393,-500.0,0.00019178,2]
[342438918,1731875440403,-182.363401,0.00019178,2]
[342438919,1731875440412,-182.363401,0.00019178,2]
[342438920,1731875440421,-182.363401,0.00019178,2]
[342438921,1731875440431,-182.363401,0.00019178,2]
[342438922,1731875440440,-4484.38,0.00019178,2]
[342438923,1731875440449,-182.363401,0.00019178,2]
[342438924,1731875440459,-182.363401,0.00019178,2]
[342438925,1731875440469,-182.363401,0.00019178,2]
[342438926,1731875440478,-182.363401,0.00019178,2]
[342438927,1731875440488,-182.363401,0.00019178,2]
[342438928,1731875440498,-182.363401,0.00019178,2]
[342438929,1731875440508,-182.363401,0.00019178,2]
[342438930,1731875440519,-182.363401,0.00019178,2]
[342438931,1731875440529,-2188.29,0.00019178,2]
[342438932,1731875440538,-182.363401,0.00019178,2]
[342438933,1731875440549,-182.363401,0.00019178,2]
[342438934,1731875440560,-182.363401,0.00019178,2]
[342438935,1731875440569,-154.71909628,0.00019178,2]
[342438936,1731875440578,-1039.38,0.00019178,2]
[342438937,1731875440587,-500.0,0.00019178,2]
[342438938,1731875440595,-182.363396,0.00019178,2]
[342438939,1731875440605,-729.75,0.00019178,2]
[342438940,1731875440614,-500.0,0.00019178,2]
[342438941,1731875440623,-500.0,0.00019178,2]